[Event "Stare Mesto Open-A 2022"]
[Site "Stare Mesto"]
[Date "2022.08.12"]
[Round "1.6"]
[White "Skalka, Jan"]
[Black "Murko, David"]
[Result "0-1"]
[ECO "A34"]
[WhiteElo "1909"]
[BlackElo "2213"]
[Annotator "TA"]
[PlyCount "146"]
[EventDate "2022.08.12"]
[EventType "swiss"]
[EventCountry "CZE"]
[SourceTitle "playchess.com"]
[Source "ChessBase"]
[SourceQuality "1"]
[TimeControl "40/5400+30:1800+30"]

{[%evp 17,146,0,0,16,0,-35,-30,-40,-32,-62,-63,-57,-66,-88,-75,-81,-53,-56,-49,-102,-64,-140,-118,-99,-88,-116,-85,-102,-91,-88,-94,-97,-88,-109,-94,-82,-108,-94,-76,-74,-102,-81,-90,-155,-156,-142,-145,-148,-149,-221,-237,-1051,-1036,-977,-410,-362,-146,-231,-177,-175,-147,-146,-147,-148,-151,-159,-166,-163,-144,-156,-150,-189,-176,-339,-197,-203,-150,-145,-141,-181,-40,-91,-22,-15,-20,-30,-31,-30,-31,-43,-35,-36,-41,-106,-110,-155,-117,-1269,-1270,-1241,-1118,-4694,-9583,-5608,-7202,-7280,-4869,-5085,-3912,-29953,-29959,-29961,-29962,-29962,-29963,-29975,-29976,-29977,-29978,-29978,-29971,-29978,-29979,-29979,-29980,-29979,-29980,-29981,-29982,-29981,-10399]} 1. c4 Nf6 {[%emt 0:00:43]} 2. g3 {[%emt 0:00:17]} c5 {[%emt 0:01:20]} 3. Bg2 {[%emt 0:00:18]} d5 {[%emt 0:01:37]} 4. cxd5 {[%emt 0:00:42]} Nxd5 {[%emt 0:00:06]} 5. Nc3 {[%emt 0:00:10]} Nc7 {[%emt 0:00:56]} 6. Nf3 {[%emt 0:00:58]} Nc6 {[%emt 0:00:08]} 7. O-O {[%emt 0:00:53]} e5 {[%emt 0:01:11]} 8. a3 {[%emt 0:00:46]} f6 {[%emt 0:03:52]} 9. d3 {[%emt 0:03:03]} Be7 {[%emt 0:03:37]} 10. Be3 {[%emt 0:03:51] A34: Symmetrical English: 2 Nc3, lines with ...d5.} O-O {[%emt 0:10:25]} 11. Ne4 {[%emt 0:02:54]} b6 {[%emt 0:04:36]} 12. Rc1 {[%emt 0:03:48][%cal Ob2b4] Black has an edge.} Bd7 {[%emt 0:04:08]} 13. Bd2 {[%emt 0:07:30][%cal Ob2b4]} Kh8 {[%emt 0:05:47]} 14. Qc2 {[%emt 0:18:23] [#]} Rc8 $146 {[%emt 0:00:37]} ({Predecessor:} 14... Ne6 15. e3 Rc8 16. Qb1 a5 17. Bc3 Be8 18. h3 Qd7 19. Rfd1 Bf7 20. g4 Rfd8 {½-½ (74) Manzi,L (2047)-Viana,D (2201) Rio de Janeiro 2018}) 15. Qb1 {[%emt 0:00:14]} a5 {[%emt 0:06:58]} 16. Nc3 {[%emt 0:16:26]} Nd4 {[%emt 0:09:40]} 17. Nxd4 {[%emt 0:03:07]} exd4 {[%emt 0:00:05]} 18. Na2 {[%emt 0:00:44]} (18. Nd5 $15 Nxd5 19. Bxd5) 18... a4 {[%emt 0:03:24]} 19. b4 {[%emt 0:02:26]} (19. e3 $15) 19... axb3 {[%emt 0:00:09]} 20. Qxb3 {[%emt 0:00:07]} Be6 {[%emt 0:00:13]} 21. Qb2 {[%emt 0:02:03]} Bd5 {[%emt 0:03:21]} 22. e4 {[%emt 0:03:38]} dxe3 {[%emt 0:02:00]} 23. Bxe3 {[%emt 0:00:07]} Bxg2 {[%emt 0:05:14]} 24. Kxg2 {[%emt 0:00:05]} f5 {[%emt 0:02:46]} 25. Nc3 {[%emt 0:08:37]} Ne6 {[%emt 0:13:11]} ({Much worse is} 25... Qxd3 $6 26. Qxb6 Nd5 27. Nxd5 Qxd5+ 28. Kg1 $11) 26. Qb3 {[%emt 0:04:42]} Rc6 {[%emt 0:00:14]} 27. Ne2 {[%emt 0:02:37][%cal Od3d4] Against f4} Rd6 {[%emt 0:03:13] Against d4} 28. Nf4 {[%emt 0:03:44]} Nxf4+ {[%emt 0:00:28]} 29. Bxf4 {[%emt 0:00:07]} Rxd3 {[%emt 0:00:22]} 30. Qe6 {[%emt 0:04:00]} ({White should try} 30. Rc3 Rxc3 31. Qxc3) 30... Bd6 $1 $17 {[%emt 0:01:41]} 31. Bxd6 {[%emt 0:02:11]} Rxd6 {[%emt 0:00:04]} 32. Qe5 {[%emt 0:01:26]} f4 {[%emt 0:01:01]} 33. gxf4 {[%emt 0:03:25]} (33. Rc3 $17 {was necessary.}) 33... Re8 $19 {[%emt 0:02:32]} 34. Qh5 {[%emt 0:02:12]} (34. Qc3) 34... Qa8+ {[%emt 0:02:58]} 35. f3 {[%emt 0:00:30]} Rh6 {[%emt 0:00:11]} (35... g6 36. Qg5 $17) (35... Re2+ $142 36. Rf2 Rg6+ 37. Kf1 Qxa3 38. Rxe2 Qxc1+ 39. Re1 Qc4+ 40. Re2 Re6) 36. Qf5 {[%emt 0:01:24]} Qd8 {[%emt 0:04:37] Prevents Qd3.} (36... Qxa3 $2 37. Rfe1 Rg8 38. Qe4 $19) (36... Re2+ $19 37. Rf2 Rxh2+ $3 {[%mdl 512]} 38. Kxh2 Rxf2+ 39. Kg1 Rxf3) 37. Rf2 {[%emt 0:00:54]} (37. Rfe1 $17 {was called for.}) 37... Rf8 {[%emt 0:01:57]} ({Not} 37... Qh4 38. Kf1) 38. Qe5 {[%emt 0:00:21]} Qh4 {[%emt 0:00:28]} 39. Kg1 {[%emt 0:00:40]} Qxf4 {[%emt 0:02:15]} 40. Qxf4 {[%emt 0:00:28]} Rxf4 $17 {[%emt 0:00:03][%mdl 4096] Endgame KRR-KRR} 41. Rb1 {[%emt 0:01:28]} Kg8 {[%emt 0:01:44]} 42. Rb3 {[%emt 0:02:38]} Kf7 {[%emt 0:01:18]} 43. Rd2 {[%emt 0:03:52]} c4 {[%emt 0:14:49]} 44. Re3 {[%emt 0:04:37]} Re6 {[%emt 0:02:17]} 45. Rd7+ $2 {[%emt 0:06:10]} (45. Rc3) 45... Kf6 {[%emt 0:00:02]} (45... Ke8 $142 46. Rxe6+ Kxd7) 46. Rc3 $19 {[%emt 0:01:45]} Re2 {[%emt 0:01:43] ...b5 is the strong threat.} 47. Rd6+ {[%emt 0:01:47]} Ke5 {[%emt 0:00:10] Black is more active.} 48. Rxb6 {[%emt 0:00:25] [#]} g5 {[%emt 0:00:50]} ({Stronger than} 48... Kd4 {[#]} 49. Rxc4+ $1 Kxc4 50. Rb4+ Kd3 51. Rxf4 $11) (48... Rd4 $1 $19 {[%cal Rd4d1]} 49. Rb1 Ra2) 49. Rc6 {[%emt 0:04:00]} (49. Rc1 $15) 49... Rd4 {[%emt 0:03:02]} (49... Kd5 $17 50. Rc8 Re6) 50. Rc1 $11 {[%emt 0:00:52]} Rdd2 {[%emt 0:04:54] And now ...Rg2+ would win.} 51. R6xc4 {[%emt 0:01:12]} Rg2+ {[%emt 0:00:13]} 52. Kh1 {[%emt 0:02:01]} Rxh2+ {[%emt 0:00:04]} 53. Kg1 {[%emt 0:00:03]} Rhg2+ {[%emt 0:05:04]} 54. Kh1 {[%emt 0:00:24]} Kf5 {[%emt 0:00:15]} 55. Re4 {[%emt 0:03:01]} (55. Rc5+ $15 Kg6 56. Rc7) 55... Rgf2 $17 {[%emt 0:02:10]} 56. Rc5+ {[%emt 0:03:22]} Kg6 {[%emt 0:00:11][%cal Rf2f1]} 57. Re1 {[%emt 0:00:25][%mdl 8192] Prevents Rf1+. Now White is beyond hope.} (57. Rc6+ $17 Kh5 58. Kg1) 57... Rxf3 $19 {[%emt 0:00:23]} 58. Ra1 {[%emt 0:00:24]} Rff2 {[%emt 0:00:34]} 59. a4 {[%emt 0:00:41]} Rh2+ {[%emt 0:00:35]} 60. Kg1 {[%emt 0:00:05]} Rdg2+ {[%emt 0:00:10]} 61. Kf1 {[%emt 0:00:04]} Rh1+ {[%emt 0:00:22]} 62. Kxg2 {[%emt 0:00:04]} Rxa1 {[%emt 0:00:03] KR-KR} 63. a5 {[%emt 0:00:05]} Kh5 {[%emt 0:00:27] Black mates.} 64. Kg3 {[%emt 0:02:23]} Ra3+ {[%emt 0:00:07]} 65. Kg2 {[%emt 0:00:04]} Kh4 {[%emt 0:00:19]} 66. Rc6 {[%emt 0:00:56]} h5 {[%emt 0:00:23]} 67. a6 {[%emt 0:00:36]} g4 {[%emt 0:00:55]} 68. Rf6 {[%emt 0:00:35]} Kg5 {[%emt 0:00:52]} 69. Rb6 {[%emt 0:00:19]} Ra2+ {[%emt 0:00:09]} 70. Kg1 {[%emt 0:00:05]} Kh4 {[%emt 0:00:42]} 71. Rh6 {[%emt 0:01:01]} Kg3 {[%emt 0:00:47][%cal Ra2a1]} 72. Kf1 {[%emt 0:00:40]} h4 {[%emt 0:00:12]} 73. Rb6 {[%emt 0:00:13]} Ra1+ {[%emt 0:00:49] Weighted Error Value: White=0.65/Black=0.31} 0-1

[Event "Stare Mesto Open-A 2022"]
[Site "Stare Mesto"]
[Date "2022.08.12"]
[Round "1.7"]
[White "Husek, Martin"]
[Black "Hradek, Matyas"]
[Result "1-0"]
[ECO "D10"]
[WhiteElo "2132"]
[BlackElo "1888"]
[Annotator "TA"]
[PlyCount "79"]
[EventDate "2022.08.12"]
[EventType "swiss"]
[EventCountry "CZE"]
[SourceTitle "playchess.com"]
[Source "ChessBase"]
[SourceQuality "1"]
[TimeControl "40/5400+30:1800+30"]

{[%evp 15,79,25,37,39,29,37,38,44,54,-22,-25,-20,-24,-25,-30,-93,-86,-108,-50,-81,-56,-53,-43,-123,-106,-120,-9,-19,-6,-9,0,-14,0,0,0,19,80,79,152,146,127,121,433,433,431,424,784,796,1320,1270,1593,1480,960,334,327,268,239,266,247,210,1459,1364,29990,29991,29991,29992]} 1. d4 {[%emt 0:00:04]} d5 {[%emt 0:04:56]} 2. c4 {[%emt 0:00:14]} c6 {[%emt 0:00:08]} 3. Nc3 {[%emt 0:00:25]} Nf6 {[%emt 0:00:12]} 4. cxd5 {[%emt 0:00:10]} cxd5 {[%emt 0:00:38]} 5. Bf4 {[%emt 0:00:09]} Nc6 {[%emt 0:00:57]} 6. e3 {[%emt 0:00:10]} a6 {[%emt 0:00:46]} 7. Bd3 {[%emt 0:00:39]} e6 {[%emt 0:01:57]} 8. Rc1 {[%emt 0:00:09] 8.Nf3 is the modern continuation.} Bd6 {[%emt 0:01:38]} 9. Bxd6 {[%emt 0:00:14] D10: Slav Defence: 3 cxd5 (without early Nf3) and 3 Nc3.} Qxd6 {[%emt 0:00:02]} 10. f4 {[%emt 0:00:19]} Bd7 {[%emt 0:15:42]} 11. Nf3 {[%emt 0:00:56] White is slightly better.} Ng4 {[%emt 0:02:44]} 12. Ne5 {[%emt 0:07:55]} (12. Qd2 $14) 12... Nxe3 $11 {[%emt 0:16:35]} 13. Qe2 {[%emt 0:00:28]} Nc4 {[%emt 0:00:35]} (13... Nxe5 $2 14. fxe5 Nxg2+ 15. Qxg2 $18) 14. Bxc4 {[%emt 0:02:25]} dxc4 {[%emt 0:01:05] [#]} 15. d5 $146 {[%emt 0:01:42] [#]} (15. Qxc4 $11 O-O 16. Qc5 Qxc5 17. dxc5 Nxe5 18. fxe5) ({Predecessor:} 15. Qxc4 Rc8 16. Ne4 Qe7 17. Nxd7 Qxd7 18. O-O O-O 19. Rfd1 Ne7 20. Nc5 Qd6 21. g3 {½-½ (41) Zatonskih,A (2447)-Blom,V (2228) Belgium 2017}) 15... Nxe5 $1 $17 {[%emt 0:10:14]} 16. fxe5 {[%emt 0:00:12]} Qe7 {[%emt 0:00:12]} ({Black should play} 16... Qc7 $17 17. Rd1 exd5 18. Nxd5 Qc5) 17. Ne4 {[%emt 0:15:50] Hoping for Nd6+.} O-O {[%emt 0:05:40]} (17... exd5 18. Nd6+ Kd8 19. O-O $14) 18. d6 {[%emt 0:02:00]} Qh4+ {[%emt 0:01:23]} 19. Ng3 {[%emt 0:02:08]} (19. g3 $15 Qh3 20. Rf1) 19... Rac8 {[%emt 0:02:59]} 20. Qe3 {[%emt 0:06:27] Against Qd4} f5 {[%emt 0:05:46]} (20... c3 $1 $17 {[%cal Rc3b2]} 21. Rxc3 Rxc3 22. bxc3 Bb5) 21. O-O $11 {[%emt 0:01:08]} Bc6 {[%emt 0:06:49] [#] Strongly threatening ...f4.} 22. Rf4 $132 {[%emt 0:02:14][%mdl 2048] White puts up resistance} Qh6 {[%emt 0:00:53] ...g5 is the strong threat.} 23. h4 {[%emt 0:02:13]} ({Wrong is} 23. Rcxc4 $2 g5 24. Rf3 Bxf3 25. Rxc8 Rxc8 $19) (23. Ne2 $5 {[%cal Rc1c4]}) 23... Bd5 {[%emt 0:02:24]} 24. Rd1 {[%emt 0:01:51]} c3 {[%emt 0:07:28]} 25. bxc3 {[%emt 0:00:12]} Rc4 {[%emt 0:03:54]} (25... Bxa2 $11 {keeps the balance.} 26. d7 Rcd8) 26. Ne2 $16 {[%emt 0:04:14][%cal Bg3e2,Be2f4,Bf4e6][%mdl 32] And now d7 would win.} Rxf4 {[%emt 0:04:46]} (26... Bc6 $142) 27. Nxf4 {[%emt 0:00:26]} ({Don't play} 27. Qxf4 $6 Bxa2 28. Qf2 Bb3 $11) 27... Bc6 {[%emt 0:00:12]} 28. Qd4 {[%emt 0:15:04] 0x0.00145026211cdp-1022s more active pieces.} g5 $2 {[%emt 0:00:38][%mdl 8192] This costs Black the game.} (28... a5 $16 {is a better chance.} 29. Qf2 Rd8) 29. hxg5 $18 {[%emt 0:00:35]} Qxg5 {[%emt 0:00:07]} 30. Qf2 {[%emt 0:01:45]} Rf7 {[%emt 0:01:49]} (30... Kf7 $142 31. Rd3 Rg8) 31. Nxe6 {[%emt 0:01:08]} Qg4 {[%emt 0:00:54]} 32. Rd4 {[%emt 0:00:26]} f4 {[%emt 0:00:20]} 33. Nxf4 {[%emt 0:00:25] Threatens to win with e6.} Bd7 {[%emt 0:01:07] Inhibits e6.} 34. e6 $2 {[%emt 0:00:58]} (34. Qd2) 34... Bxe6 {[%emt 0:00:25]} 35. Qe3 {[%emt 0:08:36]} Bd7 {[%emt 0:00:37]} 36. Nd5 {[%emt 0:02:52]} Qe6 {[%emt 0:00:03]} 37. Qg5+ {[%emt 0:03:13]} Rg7 $2 {[%emt 0:00:40]} (37... Kh8 38. Ne7 Rg7) 38. Qd8+ {[%emt 0:00:28]} Kf7 {[%emt 0:00:34]} 39. Rf4+ {[%emt 0:00:14]} Kg6 {[%emt 0:00:45]} 40. Rf6+ {[%emt 0:00:13] Weighted Error Value: White=0.31/Black=0.64} 1-0

[Event "Stare Mesto Open-A 2022"]
[Site "Stare Mesto"]
[Date "2022.08.12"]
[Round "1.8"]
[White "Fialka, Adam"]
[Black "Skalsky, Alexandr"]
[Result "0-1"]
[ECO "B22"]
[WhiteElo "1847"]
[BlackElo "2187"]
[Annotator "TA"]
[PlyCount "72"]
[EventDate "2022.08.12"]
[EventType "swiss"]
[EventCountry "CZE"]
[SourceTitle "playchess.com"]
[Source "ChessBase"]
[SourceQuality "1"]
[TimeControl "40/5400+30:1800+30"]

{[%evp 11,71,-11,10,0,-3,0,-7,0,4,-21,0,-21,0,0,7,0,0,-37,0,-11,-4,-37,0,-17,0,-16,0,0,0,0,46,-36,-45,-58,-41,-57,-39,-37,-33,-39,-35,-264,-267,-566,-571,-920,-429,-880,-878,-699,-197,-185,-189,-204,-168,-1213,-1173,-971,-704,-29998,-29999,-29999]} 1. e4 {[%emt 0:00:02]} c5 {[%emt 0:00:02]} 2. c3 {[%emt 0:00:10]} Nf6 {[%emt 0:00:03]} 3. Bd3 {[%emt 0:00:32]} Nc6 {[%emt 0:00:37]} 4. Nf3 {[%emt 0:01:06]} g6 {[%emt 0:06:00]} 5. O-O {[%emt 0:03:38]} Bg7 {[%emt 0:00:03]} 6. Bc2 {[%emt 0:01:18]} d6 {[%emt 0:06:35]} 7. d4 {[%emt 0:05:34] B50: Sicilian: 2...d6, Miscellaneous.} cxd4 {[%emt 0:06:57]} 8. Nxd4 {[%emt 0:01:24]} O-O {[%emt 0:00:45]} 9. Na3 {[%emt 0:07:15] The position is equal.} Bd7 {[%emt 0:12:38] [#]} 10. f3 $146 {[%emt 0:05:43]} ({Predecessor:} 10. Nc4 Nxd4 11. cxd4 Bb5 12. Bd3 Nxe4 13. Qb3 Bc6 14. Re1 Nf6 15. Bg5 Rc8 16. Qa3 {0-1 (30) Majdoub,J (1645)-Koelle,T (2380) Sousse 2021}) 10... a6 {[%emt 0:02:10]} 11. Be3 {[%emt 0:01:49]} Qc7 {[%emt 0:01:41]} 12. Bb3 {[%emt 0:05:27] Prevents d5.} Na5 {[%emt 0:07:11]} 13. Qd2 {[%emt 0:04:19]} b5 {[%emt 0:03:37]} 14. Bh6 {[%emt 0:05:09]} Rab8 {[%emt 0:03:36]} 15. Bxg7 {[%emt 0:03:19]} Kxg7 {[%emt 0:00:03]} 16. Nac2 {[%emt 0:04:44]} Qb6 {[%emt 0:14:28] White must now prevent ...e5.} 17. Kh1 {[%emt 0:01:11]} Rfc8 {[%emt 0:00:07]} 18. Rae1 {[%emt 0:07:29]} e5 {[%emt 0:08:31]} 19. Nf5+ {[%emt 0:00:15]} Bxf5 {[%emt 0:00:39]} 20. exf5 {[%emt 0:00:08]} Nc4 {[%emt 0:00:57]} (20... b4 $1 $11) 21. Qc1 {[%emt 0:03:57]} (21. Bxc4 $14 Rxc4 22. Ne3) 21... Nd5 $15 {[%emt 0:09:00]} 22. Re4 {[%emt 0:03:54]} f6 $36 {[%emt 0:00:38][%mdl 2048] Black has good play.} (22... Nf4 $5 {[%cal Rf4d3]} 23. Nb4 a5 $15) 23. g3 {[%emt 0:15:51]} Ne7 {[%emt 0:03:30]} 24. fxg6 {[%emt 0:02:53]} hxg6 {[%emt 0:00:21]} ({Resist} 24... Nxg6 25. Ne3 $14) 25. Re2 $1 {[%emt 0:01:29]} ({Much worse is} 25. Rh4 Nf5 26. Rh3 Rh8 27. Rxh8 Rxh8 28. Bxc4 bxc4 $17) 25... Rh8 {[%emt 0:02:34]} 26. Ne3 $2 {[%emt 0:01:32] [#] Loses the game.} (26. Bxc4 $15 bxc4 27. Ne3) 26... Nxe3 $1 $19 {[%emt 0:01:06]} 27. Rxe3 {[%emt 0:05:41]} (27. Qxe3 Qxe3 28. Rxe3) 27... Nf5 $1 {[%emt 0:00:02][%csl LRe3,LRg3]} 28. Rfe1 {[%emt 0:00:07]} Rh6 {[%emt 0:05:04]} (28... Rh3 $142 {Strongly threatening ...Rbh8.} 29. g4 Nxe3 30. Qxe3 Qxe3 31. Rxe3 Rbh8) 29. Kg2 {[%emt 0:01:51]} (29. R3e2 $142 Nxg3+ 30. Kg2 Nxe2 31. Rxe2) 29... Rbh8 {[%emt 0:01:05]} 30. h4 {[%emt 0:00:08] [#]} Nxe3+ $2 {[%emt 0:00:23]} (30... Nxg3 $1 {[%cal Oh6h4][%mdl 512]} 31. Kxg3 Rxh4) 31. Rxe3 {[%emt 0:00:08]} g5 {[%emt 0:02:09][%cal Bg6g5,Bg5h4,Bh4h3][%mdl 32] aiming for ...f5.} 32. Qd2 {[%emt 0:00:11]} gxh4 {[%emt 0:02:01]} 33. Qd5 $2 {[%emt 0:00:07]} (33. g4) 33... Rf8 {[%emt 0:00:39]} 34. Re4 {[%emt 0:03:56]} h3+ {[%emt 0:00:04]} 35. Kh2 {[%emt 0:00:07]} Qf2+ {[%emt 0:00:04]} 36. Kh1 {[%emt 0:00:04]} Qg2# {Weighted Error Value: White=1.03/Black=0.60} 0-1

[Event "Stare Mesto Open-A 2022"]
[Site "Stare Mesto"]
[Date "2022.08.13"]
[Round "2.1"]
[White "Vodak, Rostislav"]
[Black "Haba, Petr"]
[Result "0-1"]
[ECO "A06"]
[WhiteElo "2004"]
[BlackElo "2453"]
[Annotator "TA"]
[PlyCount "70"]
[EventDate "2022.08.12"]
[EventType "swiss"]
[EventCountry "CZE"]
[SourceTitle "playchess.com"]
[Source "ChessBase"]
[SourceQuality "1"]
[TimeControl "40/5400+30:1800+30"]

{[%evp 11,70,-4,0,-7,-11,-19,13,4,0,9,7,-22,-9,-12,-6,-27,-26,-30,-10,-14,0,0,0,0,7,0,0,0,0,0,0,0,34,0,0,0,0,-9,-9,-9,0,-22,-24,-65,-65,-64,-30,-86,-95,-95,-79,-122,-72,-80,-69,-64,-64,-155,-155,-634,-611]} 1. Nf3 d5 2. e3 Nf6 {[%emt 0:02:01]} 3. b3 {[%emt 0:08:39]} g6 {[%emt 0:02:32]} 4. Bb2 {[%emt 0:00:18]} Bg7 {[%emt 0:00:06]} 5. d4 {[%emt 0:00:35]} O-O {[%emt 0:00:12]} 6. Bd3 {[%emt 0:00:38]} c5 {[%emt 0:03:57]} 7. dxc5 {[%emt 0:01:15] D04: Colle System.} Qa5+ {[%emt 0:01:33]} 8. Nbd2 {[%emt 0:01:20]} Qxc5 {[%emt 0:00:12]} 9. c4 {[%emt 0:07:19] The position is equal.} Nc6 {[%emt 0:03:25][%cal Oe7e5]} 10. O-O {[%emt 0:06:53]} dxc4 {[%emt 0:09:02]} 11. Nxc4 {[%emt 0:02:23]} Rd8 {[%emt 0:03:57]} 12. Qe2 {[%emt 0:02:23]} (12. Rc1 {looks sharper.} Bg4 13. Nce5 Qa5 14. Bc3) 12... Bg4 {[%emt 0:01:07] [#]} 13. Rac1 $146 {[%emt 0:01:55]} ({Predecessor:} 13. Rfd1 Rac8 14. Rac1 Qh5 15. h3 Bxf3 16. Qxf3 Qxf3 17. gxf3 Nd5 18. Bxg7 Kxg7 19. Be4 e6 20. f4 Ncb4 21. Bb1 Nc6 22. Be4 Ncb4 23. Bb1 Nc6 24. Be4 {½-½ (24) Doci,S (2103)-Guthrie,D (2175) England 2012}) 13... Bxf3 {[%emt 0:17:52]} 14. gxf3 {[%emt 0:00:14]} Qh5 {[%emt 0:07:20]} 15. Rfd1 {[%emt 0:06:44]} Rd5 {[%emt 0:00:07]} 16. Bxf6 {[%emt 0:06:26]} Bxf6 {[%emt 0:00:57]} 17. f4 {[%emt 0:00:26]} Qh3 {[%emt 0:03:06]} 18. Qf1 {[%emt 0:01:44]} Qe6 {[%emt 0:09:05]} 19. Be2 {[%emt 0:10:54]} Rxd1 {[%emt 0:05:20]} 20. Rxd1 {[%emt 0:00:27]} b5 {[%emt 0:01:16]} 21. Nd2 {[%emt 0:04:01]} Rd8 {[%emt 0:00:56]} 22. Nf3 {[%emt 0:02:35]} (22. Bf3 $5 {[%cal Rf1b5]}) 22... b4 {[%emt 0:02:19]} 23. Rxd8+ {[%emt 0:01:22]} Nxd8 {[%emt 0:00:02][%cal Bc6d8,Bd8b7,Bb7c5][%mdl 32]} 24. Bc4 {[%emt 0:01:48]} Qg4+ {[%emt 0:02:21]} 25. Qg2 {[%emt 0:00:10]} Qf5 {[%emt 0:00:05]} 26. Qf1 {[%emt 0:01:29] Prevents Qb1.} Nb7 {[%emt 0:00:59]} 27. Qe2 {[%emt 0:02:17]} Nc5 $1 {[%emt 0:01:23]} 28. Ne1 {[%emt 0:06:10]} a5 {[%emt 0:03:18]} 29. f3 {[%emt 0:03:14]} (29. Bd3 $11 Nxd3 30. Nxd3) 29... Qb1 $17 {[%emt 0:05:49] And now ...Bh4 would win.} 30. Kg2 {[%emt 0:00:53]} e6 {[%emt 0:03:43]} 31. Nd3 {[%emt 0:01:34]} Nd7 {[%emt 0:00:31] Black is much more active.} (31... Nxd3 $142 32. Bxd3 Qc1) 32. Nf2 {[%emt 0:06:29]} Nb6 {[%emt 0:00:04]} 33. Bd3 {[%emt 0:00:17]} Qa1 {[%emt 0:00:45]} 34. Nd1 {[%emt 0:01:20]} (34. Be4 $15) 34... Nd5 {[%emt 0:01:24][%cal Oa1d1] White must now prevent ...Qxd1!} 35. Bc4 $2 {[%emt 0:01:29] [#]} (35. Kh3 $17) 35... Qxd1 $3 {[%emt 0:00:41][%mdl 512] Weighted Error Value: White=0.33/Black=0.08 (flawless)} 0-1

[Event "Stare Mesto Open-A 2022"]
[Site "Stare Mesto"]
[Date "2022.08.13"]
[Round "2.2"]
[White "Cerveny, Martin"]
[Black "Kostka, Vit"]
[Result "1-0"]
[ECO "D41"]
[WhiteElo "2396"]
[BlackElo "2168"]
[Annotator "TA"]
[PlyCount "109"]
[EventDate "2022.08.12"]
[EventType "swiss"]
[EventCountry "CZE"]
[SourceTitle "playchess.com"]
[Source "ChessBase"]
[SourceQuality "1"]
[TimeControl "40/5400+30:1800+30"]

{[%evp 14,109,22,26,19,0,0,-1,0,-16,-16,-20,-3,-10,0,0,0,-8,0,0,0,0,0,-10,13,15,15,12,15,3,48,48,55,55,55,55,66,55,55,55,55,55,55,55,114,55,55,55,55,55,55,55,116,119,127,112,123,105,122,113,115,108,103,80,104,96,87,108,132,0,73,62,50,47,200,209,231,239,210,258,480,508,499,489,544,535,892,637,1873,1669,29968,29969,29969,29969,29989,29990,29990,29966]} 1. d4 {[%emt 0:00:08]} Nf6 {[%emt 0:00:35]} 2. Nf3 {[%emt 0:00:08]} d5 {[%emt 0:00:45]} 3. c4 {[%emt 0:00:13]} e6 {[%emt 0:00:19][%cal Be7e6,Be6d5][%mdl 32]} 4. Nc3 {[%emt 0:00:13]} c5 {[%emt 0:00:53]} 5. cxd5 {[%emt 0:00:30]} cxd4 {[%emt 0:00:28]} 6. Qa4+ {[%emt 0:07:49]} Bd7 {[%emt 0:00:08]} 7. Qxd4 {[%emt 0:00:05]} exd5 {[%emt 0:00:25]} 8. Bg5 {[%emt 0:05:40]} Nc6 {[%emt 0:04:06][%cal Bb8c6,Bc6d4,Bd4f3][%mdl 32] D41: Queen's Gambit Declined: Semi-Tarrasch with 5 cxd5.} 9. Bxf6 {[%emt 0:05:40]} (9. Qd3 {is more complex.} Be6 10. e3 h6 11. Bh4) 9... Nxd4 {[%emt 0:00:52]} 10. Bxd8 {[%emt 0:00:07]} Nxf3+ {[%emt 0:22:12] The position is equal.} ({Much less strong is} 10... Nc2+ 11. Kd2 Nxa1 12. Bh4 $16) 11. gxf3 {[%emt 0:09:19] aiming for Bc7.} Rxd8 {[%emt 0:01:02]} 12. Nxd5 {[%emt 0:03:14]} Bc6 {[%emt 0:03:30]} 13. Nc3 {[%emt 0:01:44]} Bb4 {[%emt 0:02:38] [#]} 14. Rc1 $146 {[%emt 0:01:52]} ({Predecessor:} 14. Rg1 O-O 15. Rg4 a5 16. a3 Bd6 17. Rd1 Be5 18. h3 f5 19. Rc4 Rxd1+ 20. Nxd1 {1-0 (48) Basso,P (2439)-Louis,T (2250) Paris 2015}) 14... O-O {[%emt 0:01:31]} 15. Bg2 {[%emt 0:04:36]} Rfe8 {[%emt 0:01:33]} 16. a3 {[%emt 0:03:11]} Bxc3+ {[%emt 0:09:11]} 17. Rxc3 {[%emt 0:02:02]} Rd6 {[%emt 0:01:10]} 18. Re3 {[%emt 0:13:00]} Rxe3 {[%emt 0:11:24]} 19. fxe3 $11 {[%emt 0:00:26][%mdl 4096] Endgame KRB-KRB} f5 {[%emt 0:00:19]} 20. h4 {[%emt 0:01:23]} Kf7 {[%emt 0:00:58]} 21. b4 {[%emt 0:04:24]} Bb5 {[%emt 0:06:01]} 22. f4 $1 {[%emt 0:01:29]} Ra6 {[%emt 0:03:21]} 23. Bxb7 {[%emt 0:06:59]} Rxa3 {[%emt 0:00:17]} 24. Kf2 {[%emt 0:00:07]} Ra4 {[%emt 0:01:48]} 25. Bd5+ {[%emt 0:03:18]} Kf6 {[%emt 0:01:48]} 26. Rb1 {[%emt 0:00:43]} h6 {[%emt 0:01:58]} 27. h5 {[%emt 0:01:46]} a6 {[%emt 0:02:36]} 28. Rb2 {[%emt 0:01:31]} Ke7 {[%emt 0:02:41]} (28... Be8 $14) 29. Bf3 {[%emt 0:05:07]} (29. e4 $1 $16 {[%cal Re4f5]}) 29... Be8 $14 {[%emt 0:03:38]} 30. Rb3 {[%emt 0:01:38]} Bf7 {[%emt 0:01:16]} 31. Rb1 {[%emt 0:01:19]} Be8 {[%emt 0:00:13]} 32. Rb2 {[%emt 0:00:14]} Bb5 {[%emt 0:02:45]} ({Black should play} 32... Kf6 $14) 33. e4 $16 {[%emt 0:01:51]} fxe4 {[%emt 0:01:17]} 34. Bxe4 {[%emt 0:00:06]} Ke6 {[%emt 0:03:53]} 35. Bf3 {[%emt 0:03:05]} Kf5 {[%emt 0:01:13]} 36. Kg3 {[%emt 0:01:24]} Kf6 {[%emt 0:02:02]} 37. e4 {[%emt 0:03:28]} Ra3 {[%emt 0:00:54]} 38. Kf2 {[%emt 0:00:45]} Bd3 {[%emt 0:00:24]} 39. Rd2 {[%emt 0:01:24]} Rc3 {[%emt 0:02:13]} 40. Bg2 {[%emt 0:00:35]} Rb3 {[%emt 0:00:40]} 41. Bf3 {[%emt 0:31:05]} (41. e5+ $142 Kf5 42. Bd5) 41... Rc3 $1 {[%emt 0:31:58]} 42. Rd1 {[%emt 0:00:00]} Rb3 {[%emt 0:00:00]} 43. Bg2 {[%emt 0:00:00]} Rb2+ $2 {[%emt 0:00:00] [#] A mistake that costs the game.} (43... Ke7 $1 $14) 44. Ke3 $1 $18 {[%emt 0:00:00]} Bb5 {[%emt 0:00:00]} 45. e5+ {[%emt 0:00:00]} Ke7 {[%emt 0:00:00]} 46. Bd5 {[%emt 0:00:00]} Rxb4 $2 {[%emt 0:00:00]} (46... Re2+ 47. Kf3 Rc2) 47. Rg1 {[%emt 0:00:00]} Kf8 {[%emt 0:00:00] [#]} 48. Rc1 $1 {[%emt 0:00:00]} Be8 {[%emt 0:00:00]} 49. Rc8 {[%emt 0:00:00] Hoping for Bc6.} Rb6 {[%emt 0:00:00] Against Bc6} 50. f5 {[%emt 0:00:00]} Ke7 {[%emt 0:00:00]} 51. Rc7+ {[%emt 0:00:00]} Kf8 {[%emt 0:00:00]} 52. e6 {[%emt 0:00:00][%csl Gc7][%cal Re6e7] White mates.} Bxh5 {[%emt 0:00:00]} 53. Kd4 {[%emt 0:00:00]} a5 {[%emt 0:00:00]} 54. Kc5 {[%emt 0:00:00]} Ra6 {[%emt 0:00:00]} 55. Bb7 {[%emt 0:00:00] Weighted Error Value: White=0.06 (flawless) /Black=0.35} 1-0